fUSD/lending_fUSD_20260522
["ID","MTS","AMOUNT","RATE_DAILY","PERIOD"]
[422810201,1779441040000,-167.71646184,0.00012003,2]
[422810204,1779441040000,-500.0,0.00012003,2]
[422810203,1779441040000,-150.0,0.00012003,2]
[422810202,1779441040000,-500.0,0.00012003,2]
[422810209,1779441040000,-500.0,0.00012003,2]
[422810206,1779441040000,-500.0,0.00012003,2]
[422810208,1779441040000,-500.0,0.00012003,2]
[422810221,1779441040000,-214.64101228,0.00012003,2]
[422810214,1779441040000,-500.0,0.00012003,2]
[422810213,1779441040000,-500.0,0.00012003,2]
[422810216,1779441040000,-537.75100803,0.00012003,2]
[422810215,1779441040000,-500.0,0.00012003,2]
[422810218,1779441040000,-150.0,0.00012003,2]
[422810219,1779441040000,-150.0,0.00012003,2]
[422810217,1779441040000,-150.0,0.00012003,2]
[422810220,1779441040000,-150.0,0.00012003,2]
[422810223,1779441040000,-500.0,0.00012003,2]
[422810222,1779441040000,-500.0,0.00012003,2]
[422810224,1779441040000,-500.0,0.00012003,2]
[422810200,1779441040000,-500.0,0.00012003,2]
[422810211,1779441040000,-500.0,0.00012003,2]
[422810197,1779441040000,-500.0,0.00012003,2]
[422810172,1779441040000,-500.0,0.00012003,2]
[422810196,1779441040000,-500.0,0.00012003,2]
[422810170,1779441040000,-500.0,0.00012003,2]
[422810174,1779441040000,-500.0,0.00012003,2]
[422810175,1779441040000,-500.0,0.00012003,2]
[422810176,1779441040000,-500.0,0.00012003,2]
[422810173,1779441040000,-500.0,0.00012003,2]
[422810169,1779441040000,-500.0,0.00012003,2]
[422810171,1779441040000,-500.0,0.00012003,2]
[422810226,1779441040000,-500.0,0.00012003,2]
[422810178,1779441040000,-556.60039062,0.00012003,2]
[422810177,1779441040000,-500.0,0.00012003,2]
[422810179,1779441040000,-500.0,0.00012003,2]
[422810180,1779441040000,-500.0,0.00012003,2]
[422810181,1779441040000,-500.0,0.00012003,2]
[422810183,1779441040000,-500.0,0.00012003,2]
[422810182,1779441040000,-500.0,0.00012003,2]
[422810185,1779441040000,-500.0,0.00012003,2]
[422810186,1779441040000,-500.0,0.00012003,2]
[422810187,1779441040000,-500.0,0.00012003,2]
[422810188,1779441040000,-500.0,0.00012003,2]
[422810184,1779441040000,-500.0,0.00012003,2]
[422810190,1779441040000,-500.0,0.00012003,2]
[422810189,1779441040000,-500.0,0.00012003,2]
[422810193,1779441040000,-500.0,0.00012003,2]
[422810191,1779441040000,-500.0,0.00012003,2]
[422810192,1779441040000,-500.0,0.00012003,2]
[422810195,1779441040000,-500.0,0.00012003,2]
[422810194,1779441040000,-500.0,0.00012003,2]
[422810199,1779441040000,-500.0,0.00012003,2]
[422810225,1779441040000,-500.0,0.00012003,2]
[422810234,1779441040000,-1049.20362992,0.0001201,2]
[422810227,1779441040000,-500.0,0.00012003,2]
[422810260,1779441040000,-500.0,0.00012109,2]
[422810263,1779441040000,-500.0,0.00012109,2]
[422810262,1779441040000,-500.0,0.00012109,2]
[422810268,1779441040000,-621.5832555,0.00012109,2]
[422810265,1779441040000,-300.0,0.00012109,2]
[422810264,1779441040000,-499.3783259,0.00012109,2]
[422810266,1779441040000,-300.0,0.00012109,2]
[422810267,1779441040000,-300.0,0.00012109,2]
[422810270,1779441040000,-230.50327238,0.0001211,2]
[422810269,1779441040000,-259.14028262,0.0001211,2]
[422810272,1779441040000,-150.0,0.0001211,2]
[422810228,1779441040000,-500.0,0.00012003,2]
[422810261,1779441040000,-500.0,0.00012109,2]
[422810271,1779441040000,-237.25620905,0.0001211,2]
[422810277,1779441040000,-151.0,0.0001211,2]
[422810275,1779441040000,-1315.0,0.0001211,5]
[422810280,1779441040000,-270.853974,0.0001211,2]
[422810276,1779441040000,-151.0,0.0001211,2]
[422810279,1779441040000,-151.0,0.0001211,2]
[422810281,1779441040000,-451.033849,0.0001211,2]
[422810278,1779441040000,-161.107175,0.0001211,2]
[422810283,1779441040000,-451.033849,0.0001211,2]
[422810282,1779441040000,-451.033849,0.0001211,2]
[422810285,1779441040000,-151.0,0.0001211,2]
[422810284,1779441040000,-451.033849,0.0001211,2]
[422810286,1779441040000,-456.894348,0.0001211,2]
[422810274,1779441040000,-165.91396287,0.0001211,2]
[422810258,1779441040000,-500.0,0.00012109,2]
[422810273,1779441040000,-172.10761975,0.0001211,2]
[422810254,1779441040000,-198.57141362,0.00012109,2]
[422810259,1779441040000,-166.1224144,0.00012109,2]
[422810229,1779441040000,-500.0,0.00012003,2]
[422810230,1779441040000,-500.0,0.00012003,2]
[422810232,1779441040000,-614.71699548,0.00012003,2]
[422810233,1779441040000,-2000.0,0.00012009,2]
[422810231,1779441040000,-500.0,0.00012003,2]
[422810235,1779441040000,-192.56304371,0.0001201,2]
[422810237,1779441040000,-5000.0,0.0001201,2]
[422810239,1779441040000,-1500.0,0.0001201,2]
[422810238,1779441040000,-1819.94769449,0.0001201,2]
[422810240,1779441040000,-4955.6789782,0.0001201,2]
[422810242,1779441040000,-20774.0,0.00012082,2]
[422810245,1779441040000,-9999.99,0.00012087,2]
[422810236,1779441040000,-8554.85839354,0.0001201,2]
[422810241,1779441040000,-25216.58303399,0.00012025,2]
[422810243,1779441040000,-25216.58303399,0.00012086,2]
[422810255,1779441040000,-500.0,0.00012109,2]
[422810250,1779441040000,-324.45735966,0.00012109,2]
[422810256,1779441040000,-395.46172365,0.00012109,2]
[422810253,1779441040000,-500.0,0.00012109,2]
[422810257,1779441040000,-500.0,0.00012109,2]
[422810252,1779441040000,-500.0,0.00012109,2]
[422810246,1779441040000,-712.6460433,0.000121,2]
[422810248,1779441040000,-151.0,0.00012107,2]
[422810249,1779441040000,-151.0,0.00012107,2]
[422810247,1779441040000,-151.0,0.00012107,2]
[422810244,1779441040000,-9414.43,0.00012087,2]
[422810251,1779441040000,-500.0,0.00012109,2]
[422810328,1779441041000,-451.033849,0.00012549,2]
[422810330,1779441041000,-451.033849,0.00012549,2]
[422810329,1779441041000,-451.033849,0.00012549,2]
[422810325,1779441041000,-297.110834,0.00012549,2]
[422810322,1779441041000,-300.0,0.00012548,2]
[422810316,1779441041000,-204.2,0.000125,2]
[422810321,1779441041000,-300.0,0.00012548,2]
[422810319,1779441041000,-712.6460433,0.00012541,2]
[422810317,1779441041000,-204.2,0.000125,2]
[422810318,1779441041000,-204.2,0.000125,2]
[422810324,1779441041000,-4869.5508336,0.00012549,2]
[422810320,1779441041000,-300.0,0.00012548,2]
[422810326,1779441041000,-151.0,0.00012549,2]
[422810345,1779441041000,-386.30539989,0.00012551,2]
[422810327,1779441041000,-151.0,0.00012549,2]
[422810332,1779441041000,-151.0,0.00012549,2]
[422810334,1779441041000,-456.894348,0.00012549,2]
[422810333,1779441041000,-456.894348,0.00012549,2]
[422810336,1779441041000,-456.894348,0.00012549,2]
[422810335,1779441041000,-456.894348,0.00012549,2]
[422810337,1779441041000,-6627.480786,0.00012549,2]
[422810341,1779441041000,-151.0,0.00012549,2]
[422810338,1779441041000,-151.0,0.00012549,2]
[422810342,1779441041000,-151.0,0.00012549,2]
[422810340,1779441041000,-151.0,0.00012549,2]
[422810339,1779441041000,-151.0,0.00012549,2]
[422810331,1779441041000,-451.033849,0.00012549,2]
[422810315,1779441041000,-192.56304368,0.00012492,2]
[422810311,1779441041000,-4937.4575,0.00012452,2]
[422810314,1779441041000,-195.39157573,0.0001249,2]
[422810346,1779441041000,-403679.7978737,0.00012551,2]
[422810287,1779441041000,-456.894348,0.0001211,2]
[422810288,1779441041000,-456.894348,0.0001211,2]
[422810291,1779441041000,-2385016.4112,0.0001211,2]
[422810289,1779441041000,-456.894348,0.0001211,2]
[422810290,1779441041000,-151.313879,0.0001211,2]
[422810295,1779441041000,-5452.32450331,0.00012196,2]
[422810292,1779441041000,-25216.58303399,0.00012147,2]
[422810296,1779441041000,-25216.58303399,0.00012208,2]
[422810294,1779441041000,-619.51842159,0.00012173,2]
[422810293,1779441041000,-1420.32,0.00012152,2]
[422810297,1779441041000,-3292.0,0.00012225,2]
[422810313,1779441041000,-406.4562,0.00012452,2]
[422810299,1779441041000,-350.0,0.00012273,2]
[422810298,1779441041000,-25216.58303399,0.00012269,2]
[422810303,1779441041000,-208.7374384,0.00012332,2]
[422810304,1779441041000,-25216.58303399,0.00012391,2]
[422810302,1779441041000,-25216.58303399,0.0001233,2]
[422810306,1779441041000,-433.0,0.0001242,2]
[422810305,1779441041000,-154.07,0.000124,2]
[422810307,1779441041000,-5452.32450331,0.0001243,2]
[422810301,1779441041000,-5425.72254372,0.00012297,2]
[422810308,1779441041000,-1170.28295847,0.00012449,2]
[422810309,1779441041000,-25216.58303399,0.00012452,2]
[422810312,1779441041000,-500.0,0.00012452,2]
[422810310,1779441041000,-6641.3604,0.00012452,2]
[422810300,1779441041000,-166.41,0.00012284,2]
[422810344,1779441041000,-300.0,0.0001255,2]
[422810323,1779441041000,-167227.0645368,0.00012549,2]
[422810347,1779441041000,-151.0,0.00012551,2]
[422810379,1779441041000,-1040.33,0.000126,2]
[422810375,1779441041000,-456.894348,0.00012552,2]
[422810380,1779441041000,-151.0,0.00012619,2]
[422810382,1779441041000,-151.0,0.00012619,2]
[422810381,1779441041000,-151.0,0.00012619,2]
[422810383,1779441041000,-151.0,0.00012619,2]
[422810387,1779441041000,-176.6,0.00012619,2]
[422810384,1779441041000,-151.0,0.00012619,2]
[422810388,1779441041000,-176.6,0.00012619,2]
[422810385,1779441041000,-176.6,0.00012619,2]
[422810386,1779441041000,-176.6,0.00012619,2]
[422810389,1779441041000,-176.6,0.00012619,2]
[422810391,1779441041000,-176.6,0.00012619,2]
[422810392,1779441041000,-176.6,0.00012619,2]
[422810394,1779441041000,-175.2892497,0.00012621,2]
[422810393,1779441041000,-151.0,0.0001262,2]
[422810395,1779441041000,-120121.2796795,0.00012623,2]
[422810397,1779441041000,-254.9055,0.000127,2]
[422810398,1779441041000,-254.90551,0.000127,2]
[422810399,1779441041000,-254.9055,0.000127,2]
[422810396,1779441041000,-5452.32450331,0.00012663,2]
[422810400,1779441041000,-254.9055,0.000127,2]
[422810403,1779441041000,-5425.72254372,0.00012731,2]
[422810402,1779441041000,-254.90551,0.000127,2]
[422810401,1779441041000,-254.9055,0.000127,2]
[422810404,1779441041000,-215.27762834,0.00012774,2]
[422810343,1779441041000,-300.0,0.0001255,2]
[422810377,1779441041000,-151.0,0.00012552,2]
[422810373,1779441041000,-456.894348,0.00012552,2]
[422810390,1779441041000,-176.6,0.00012619,2]
[422810372,1779441041000,-456.894348,0.00012552,2]
[422810376,1779441041000,-205.0,0.00012552,2]
[422810350,1779441041000,-451.033849,0.00012551,2]
[422810349,1779441041000,-451.033849,0.00012551,2]
[422810352,1779441041000,-451.033849,0.00012551,2]
[422810354,1779441041000,-456.894348,0.00012551,2]
[422810351,1779441041000,-451.033849,0.00012551,2]
[422810353,1779441041000,-151.0,0.00012551,2]
[422810355,1779441041000,-456.894348,0.00012551,2]
[422810358,1779441041000,-151.0,0.00012551,2]
[422810357,1779441041000,-456.894348,0.00012551,2]
[422810356,1779441041000,-456.894348,0.00012551,2]
[422810359,1779441041000,-151.0,0.00012551,2]
[422810361,1779441041000,-300.0,0.00012551,2]
[422810360,1779441041000,-151.0,0.00012551,2]
[422810348,1779441041000,-151.0,0.00012551,2]
[422810371,1779441041000,-151.0,0.00012552,2]
[422810365,1779441041000,-151.0,0.00012552,2]
[422810362,1779441041000,-306.09243083,0.00012551,2]
[422810364,1779441041000,-22850.1903648,0.00012552,2]
[422810366,1779441041000,-151.0,0.00012552,2]
[422810368,1779441041000,-451.033849,0.00012552,2]
[422810369,1779441041000,-451.033849,0.00012552,2]
[422810407,1779441041000,-350.0,0.00012788,2]
[422810367,1779441041000,-451.033849,0.00012552,2]
[422810363,1779441041000,-613729.1177772,0.00012552,2]
[422810374,1779441041000,-456.894348,0.00012552,2]
[422810370,1779441041000,-451.033849,0.00012552,2]
[422810378,1779441041000,-151.0,0.00012552,2]
[422810427,1779441042000,-456.894348,0.00012893,2]
[422810426,1779441042000,-456.894348,0.00012893,2]
[422810435,1779441042000,-152.0,0.00012961,6]
[422810428,1779441042000,-456.894348,0.00012893,2]
[422810425,1779441042000,-151.0,0.00012893,2]
[422810424,1779441042000,-451.033848,0.00012893,2]
[422810438,1779441042000,-192.56304368,0.00012973,2]
[422810430,1779441042000,-151.0,0.00012893,2]
[422810432,1779441042000,-151.0,0.00012893,2]
[422810434,1779441042000,-350.0,0.00012899,2]
[422810433,1779441042000,-5452.32450331,0.00012897,2]
[422810429,1779441042000,-456.894341,0.00012893,2]
[422810431,1779441042000,-151.0,0.00012893,2]
[422810423,1779441042000,-451.033849,0.00012893,2]
[422810414,1779441042000,-110.62388273,0.00012549,2]
[422810422,1779441042000,-451.033849,0.00012893,2]
[422810420,1779441042000,-151.0,0.00012893,2]
[422810419,1779441042000,-151.0,0.00012893,2]
[422810418,1779441042000,-167369.22171623,0.00012893,2]
[422810417,1779441042000,-151.0,0.00012552,2]
[422810415,1779441042000,-40.37611727,0.00012549,2]
[422810413,1779441042000,-188.91611727,0.00012003,2]
[422810416,1779441042000,-229.780839,0.00012551,2]
[422810411,1779441042000,-300.0,0.00012892,2]
[422810412,1779441042000,-4014.23828377,0.00012893,2]
[422810410,1779441042000,-22206.01,0.0001288,2]
[422810409,1779441042000,-22206.01,0.0001288,2]
[422810421,1779441042000,-451.033849,0.00012893,2]
[422810436,1779441042000,-1368.0,0.00012969,5]
[422810441,1779441042000,-5452.32450331,0.00013131,2]
[422810467,1779441042000,-300.0,0.00013362,2]
[422810471,1779441042000,-151.0,0.00013363,2]
[422810465,1779441042000,-74574.4477115,0.000133,3]
[422810466,1779441042000,-200.0,0.00013325,2]
[422810464,1779441042000,-158.4085066,0.00013196,2]
[422810469,1779441042000,-167227.0645368,0.00013363,2]
[422810470,1779441042000,-6627.480786,0.00013363,2]
[422810468,1779441042000,-350.0,0.00013362,2]
[422810437,1779441042000,-1373.0,0.00012969,5]
[422810461,1779441042000,-1049.2036299,0.00013178,2]
[422810462,1779441042000,-10247.81203377,0.00013182,2]
[422810459,1779441042000,-224.525448,0.00013151,2]
[422810460,1779441042000,-5425.72254372,0.00013165,2]
[422810458,1779441042000,-151.0,0.00013151,2]
[422810463,1779441042000,-4595.55094584,0.00013182,2]
[422810451,1779441042000,-151.0,0.00013151,2]
[422810439,1779441042000,-200.0,0.00012983,2]
[422810454,1779441042000,-151.0,0.00013151,2]
[422810440,1779441042000,-1414.86,0.00013044,2]
[422810443,1779441042000,-151.0,0.00013151,2]
[422810444,1779441042000,-151.0,0.00013151,2]
[422810456,1779441042000,-151.0,0.00013151,2]
[422810442,1779441042000,-151.0,0.00013151,2]
[422810447,1779441042000,-151.0,0.00013151,2]
[422810457,1779441042000,-151.0,0.00013151,2]
[422810449,1779441042000,-151.0,0.00013151,2]
[422810453,1779441042000,-151.0,0.00013151,2]
[422810455,1779441042000,-151.0,0.00013151,2]
[422810445,1779441042000,-151.0,0.00013151,2]
[422810516,1779441043000,-500.0,0.00013698,2]
[422810512,1779441043000,-500.0,0.00013698,2]
[422810513,1779441043000,-500.0,0.00013698,2]
[422810517,1779441043000,-501.2128294,0.00013698,2]
[422810511,1779441043000,-625.7470238,0.00013698,2]
[422810505,1779441043000,-300.0,0.00013697,2]
[422810507,1779441043000,-500.0,0.00013698,2]
[422810509,1779441043000,-500.0,0.00013698,2]
[422810508,1779441043000,-500.0,0.00013698,2]
[422810504,1779441043000,-151.0,0.00013695,2]
[422810510,1779441043000,-500.0,0.00013698,2]
[422810515,1779441043000,-500.0,0.00013698,2]
[422810526,1779441043000,-500.0,0.00013698,2]
[422810519,1779441043000,-500.0,0.00013698,2]
[422810520,1779441043000,-500.0,0.00013698,2]
[422810518,1779441043000,-500.0,0.00013698,2]
[422810522,1779441043000,-500.0,0.00013698,2]
[422810524,1779441043000,-519.2209323,0.00013698,2]
[422810523,1779441043000,-500.0,0.00013698,2]
[422810525,1779441043000,-500.0,0.00013698,2]
[422810521,1779441043000,-500.0,0.00013698,2]
[422810527,1779441043000,-500.0,0.00013698,2]
[422810528,1779441043000,-500.0,0.00013698,2]
[422810529,1779441043000,-500.0,0.00013698,2]
[422810506,1779441043000,-500.0,0.00013698,2]
[422810514,1779441043000,-500.0,0.00013698,2]
[422810502,1779441043000,-1227.99243558,0.00013663,3]
[422810486,1779441043000,-6058.0,0.00013469,2]
[422810500,1779441043000,-736.0,0.00013643,2]
[422810472,1779441043000,-151.0,0.00013363,2]
[422810474,1779441043000,-151.0,0.00013363,2]
[422810473,1779441043000,-151.0,0.00013363,2]
[422810478,1779441043000,-1420.32,0.00013367,2]
[422810482,1779441043000,-192.56304368,0.00013455,2]
[422810477,1779441043000,-5452.32450331,0.00013364,2]
[422810484,1779441043000,-150.0,0.0001346,2]
[422810480,1779441043000,-154.07,0.00013434,2]
[422810479,1779441043000,-230.0,0.000134,2]
[422810476,1779441043000,-151.0,0.00013363,2]
[422810483,1779441043000,-1271.0,0.0001346,2]
[422810475,1779441043000,-151.0,0.00013363,2]
[422810481,1779441043000,-2703.0,0.00013447,2]
[422810487,1779441043000,-3634.0,0.00013469,2]
[422810485,1779441043000,-1238.085,0.00013469,2]
[422810488,1779441043000,-350.0,0.0001348,2]
[422810496,1779441043000,-5452.32450331,0.00013598,2]
[422810498,1779441043000,-352.76895964,0.00013601,2]
[422810492,1779441043000,-619.51842157,0.00013537,2]
[422810495,1779441043000,-152.0,0.00013541,7]
[422810491,1779441043000,-173.033,0.00013531,2]
[422810489,1779441043000,-1813.15,0.00013531,2]
[422810493,1779441043000,-7941.105547,0.00013538,2]
[422810494,1779441043000,-401.65736638,0.00013538,2]
[422810497,1779441043000,-5425.72254372,0.00013598,2]
[422810499,1779441043000,-350.0,0.00013615,2]
[422810530,1779441043000,-500.0,0.00013698,2]
[422810503,1779441043000,-1170.28295846,0.00013675,2]
[422810533,1779441043000,-478.0,0.00013698,2]
[422810569,1779441043000,-613.21,0.00013698,2]
[422810571,1779441043000,-613.21,0.00013698,2]
[422810568,1779441043000,-613.21,0.00013698,2]
[422810573,1779441043000,-613.21,0.00013698,2]
[422810572,1779441043000,-613.21,0.00013698,2]
[422810574,1779441043000,-613.21,0.00013698,2]
[422810580,1779441043000,-572.1,0.00013698,2]
[422810581,1779441043000,-613.21,0.00013698,2]
[422810579,1779441043000,-613.21,0.00013698,2]
[422810582,1779441043000,-572.1,0.00013698,2]
[422810577,1779441043000,-613.21,0.00013698,2]
[422810578,1779441043000,-572.1,0.00013698,2]
[422810576,1779441043000,-613.21,0.00013698,2]
[422810575,1779441043000,-613.21,0.00013698,2]
[422810583,1779441043000,-613.21,0.00013698,2]
[422810585,1779441043000,-613.21,0.00013698,2]
[422810584,1779441043000,-572.1,0.00013698,2]
[422810586,1779441043000,-572.1,0.00013698,2]
[422810587,1779441043000,-613.21,0.00013698,2]
[422810588,1779441043000,-572.1,0.00013698,2]
[422810592,1779441043000,-572.1,0.00013698,2]
[422810590,1779441043000,-572.1,0.00013698,2]
[422810589,1779441043000,-613.21,0.00013698,2]
[422810593,1779441043000,-613.21,0.00013698,2]
[422810594,1779441043000,-572.1,0.00013698,2]
[422810565,1779441043000,-500.0,0.00013698,2]
[422810564,1779441043000,-500.0,0.00013698,2]
[422810531,1779441043000,-500.0,0.00013698,2]
[422810566,1779441043000,-500.0,0.00013698,2]
[422810567,1779441043000,-539.70145366,0.00013698,2]
[422810545,1779441043000,-500.0,0.00013698,2]
[422810547,1779441043000,-400.63127979,0.00013698,2]
[422810532,1779441043000,-500.0,0.00013698,2]
[422810534,1779441043000,-500.0,0.00013698,2]
[422810536,1779441043000,-500.0,0.00013698,2]
[422810540,1779441043000,-500.0,0.00013698,2]
[422810538,1779441043000,-500.0,0.00013698,2]
[422810548,1779441043000,-500.0,0.00013698,2]
[422810549,1779441043000,-500.0,0.00013698,2]
[422810550,1779441043000,-500.0,0.00013698,2]
[422810552,1779441043000,-500.0,0.00013698,2]
[422810553,1779441043000,-500.0,0.00013698,2]
[422810542,1779441043000,-500.0,0.00013698,2]
[422810554,1779441043000,-500.0,0.00013698,2]
[422810551,1779441043000,-205.25819266,0.00013698,2]
[422810563,1779441043000,-500.0,0.00013698,2]
[422810570,1779441043000,-613.21,0.00013698,2]
[422810562,1779441043000,-500.0,0.00013698,2]
[422810560,1779441043000,-500.0,0.00013698,2]
[422810561,1779441043000,-500.0,0.00013698,2]
[422810558,1779441043000,-500.0,0.00013698,2]
[422810591,1779441043000,-613.21,0.00013698,2]
[422810556,1779441043000,-500.0,0.00013698,2]
[422810559,1779441043000,-500.0,0.00013698,2]
[422810557,1779441043000,-500.0,0.00013698,2]
[422810555,1779441043000,-500.0,0.00013698,2]
[422810633,1779441044000,-808.65,0.00013698,2]
[422810635,1779441044000,-808.65,0.00013698,2]
[422810634,1779441044000,-808.65,0.00013698,2]
[422810631,1779441044000,-808.65,0.00013698,2]
[422810632,1779441044000,-808.65,0.00013698,2]
[422810629,1779441044000,-808.65,0.00013698,2]
[422810627,1779441044000,-808.65,0.00013698,2]
[422810626,1779441044000,-808.65,0.00013698,2]
[422810628,1779441044000,-808.65,0.00013698,2]
[422810636,1779441044000,-808.65,0.00013698,2]
[422810630,1779441044000,-808.65,0.00013698,2]
[422810638,1779441044000,-808.65,0.00013698,2]
[422810647,1779441044000,-3268.97,0.00013698,2]
[422810642,1779441044000,-3268.97,0.00013698,2]
[422810637,1779441044000,-808.65,0.00013698,2]
[422810639,1779441044000,-808.71999896,0.00013698,2]
[422810643,1779441044000,-3268.97,0.00013698,2]
[422810641,1779441044000,-3268.97,0.00013698,2]
[422810644,1779441044000,-3268.97,0.00013698,2]
[422810645,1779441044000,-3268.97,0.00013698,2]
[422810646,1779441044000,-3268.97,0.00013698,2]
[422810648,1779441044000,-3268.97,0.00013698,2]
[422810653,1779441044000,-3268.97,0.00013698,2]
[422810656,1779441044000,-3268.97,0.00013698,2]
[422810625,1779441044000,-808.65,0.00013698,2]
[422810640,1779441044000,-3268.97,0.00013698,2]
[422810623,1779441044000,-808.65,0.00013698,2]
[422810610,1779441044000,-808.65,0.00013698,2]
[422810622,1779441044000,-572.33172659,0.00013698,2]
[422810654,1779441044000,-3268.97,0.00013698,2]
[422810597,1779441044000,-613.21,0.00013698,2]
[422810596,1779441044000,-572.1,0.00013698,2]
[422810599,1779441044000,-613.21,0.00013698,2]
[422810600,1779441044000,-572.1,0.00013698,2]
[422810598,1779441044000,-572.1,0.00013698,2]
[422810601,1779441044000,-613.21,0.00013698,2]
[422810603,1779441044000,-613.21,0.00013698,2]
[422810602,1779441044000,-572.1,0.00013698,2]
[422810607,1779441044000,-572.1,0.00013698,2]
[422810605,1779441044000,-613.22498201,0.00013698,2]
[422810606,1779441044000,-572.1,0.00013698,2]
[422810624,1779441044000,-808.65,0.00013698,2]
[422810604,1779441044000,-572.1,0.00013698,2]
[422810608,1779441044000,-808.65,0.00013698,2]
[422810618,1779441044000,-572.1,0.00013698,2]
[422810612,1779441044000,-808.65,0.00013698,2]
[422810611,1779441044000,-572.1,0.00013698,2]
[422810614,1779441044000,-808.65,0.00013698,2]
[422810613,1779441044000,-572.1,0.00013698,2]
[422810615,1779441044000,-572.1,0.00013698,2]
[422810617,1779441044000,-808.65,0.00013698,2]
[422810616,1779441044000,-572.1,0.00013698,2]
[422810619,1779441044000,-808.65,0.00013698,2]
[422810620,1779441044000,-572.1,0.00013698,2]
[422810621,1779441044000,-808.65,0.00013698,2]
[422810609,1779441044000,-572.1,0.00013698,2]
[422810595,1779441044000,-613.21,0.00013698,2]
[422810652,1779441044000,-3268.97,0.00013698,2]
[422810655,1779441044000,-3268.97,0.00013698,2]
[422810687,1779441044000,-500.0,0.00013698,2]
[422810684,1779441044000,-500.0,0.00013698,2]
[422810686,1779441044000,-500.0,0.00013698,2]
[422810689,1779441044000,-500.0,0.00013698,2]
[422810688,1779441044000,-500.0,0.00013698,2]
[422810690,1779441044000,-500.0,0.00013698,2]
[422810691,1779441044000,-500.0,0.00013698,2]
[422810692,1779441044000,-500.0,0.00013698,2]
[422810694,1779441044000,-500.0,0.00013698,2]
[422810693,1779441044000,-500.0,0.00013698,2]
[422810697,1779441044000,-500.0,0.00013698,2]
[422810696,1779441044000,-500.0,0.00013698,2]
[422810685,1779441044000,-217.28622726,0.00013698,2]
[422810698,1779441044000,-500.0,0.00013698,2]
[422810700,1779441044000,-500.0,0.00013698,2]
[422810699,1779441044000,-500.0,0.00013698,2]
[422810702,1779441044000,-500.0,0.00013698,2]
[422810701,1779441044000,-500.0,0.00013698,2]
[422810704,1779441044000,-500.0,0.00013698,2]
[422810703,1779441044000,-500.0,0.00013698,2]
[422810706,1779441044000,-500.0,0.00013698,2]
[422810705,1779441044000,-500.0,0.00013698,2]
[422810709,1779441044000,-500.0,0.00013698,2]
[422810707,1779441044000,-638.20052037,0.00013698,2]
[422810708,1779441044000,-500.0,0.00013698,2]
[422810649,1779441044000,-3268.97,0.00013698,2]
[422810695,1779441044000,-500.0,0.00013698,2]
[422810683,1779441044000,-500.0,0.00013698,2]
[422810710,1779441044000,-500.0,0.00013698,2]
[422810682,1779441044000,-226.75849924,0.00013698,2]
[422810650,1779441044000,-3268.97,0.00013698,2]
[422810651,1779441044000,-3268.97,0.00013698,2]
[422810657,1779441044000,-3268.97,0.00013698,2]
[422810658,1779441044000,-3268.97,0.00013698,2]
[422810662,1779441044000,-3268.97,0.00013698,2]
[422810659,1779441044000,-3268.97,0.00013698,2]